[Event "*** Titled Tuesday Blitz"]
[Site "Chess.com"]
[Date "2020.10.27"]
[Round "7"]
[White "MF1966Idrisov"]
[Black "shriyanasmallya"]
[Result "1-0"]
[WhiteElo "2333"]
[BlackElo "1695"]
[TimeControl "180+1"]
[EndTime "11:17:52 PDT"]
[Termination "MF1966Idrisov won by resignation"]

1. Nf3 {[%clk 0:03:00.9]} 1... Nf6 {[%clk 0:02:58.1]} 2. b3 {[%clk 0:03:01]}
2... e6 {[%clk 0:02:57.8]} 3. Bb2 {[%clk 0:03:01.2]} 3... d5 {[%clk 0:02:57.9]}
4. e3 {[%clk 0:03:01.4]} 4... Be7 {[%clk 0:02:57.1]} 5. d4 {[%clk 0:03:01.5]}
5... Nc6 {[%clk 0:02:56.6]} 6. Bd3 {[%clk 0:03:01.7]} 6... b6 {[%clk 0:02:56.2]}
7. Nbd2 {[%clk 0:03:01]} 7... Bb7 {[%clk 0:02:56.3]} 8. a3 {[%clk 0:03:01.3]}
8... Qd7 {[%clk 0:02:56.5]} 9. O-O {[%clk 0:03:00.3]} 9... O-O-O {[%clk
0:02:56.1]} 10. Qe2 {[%clk 0:03:00]} 10... h5 {[%clk 0:02:55]} 11. Ba6 {[%clk
0:02:59]} 11... Kb8 {[%clk 0:02:53.7]} 12. Bxb7 {[%clk 0:02:58.8]} 12... Kxb7
{[%clk 0:02:54.1]} 13. c4 {[%clk 0:02:59]} 13... dxc4 {[%clk 0:02:53.6]} 14.
bxc4 {[%clk 0:02:56.4]} 14... g5 {[%clk 0:02:46.6]} 15. Nxg5 {[%clk 0:02:45.8]}
15... Bd6 {[%clk 0:02:36.7]} 16. d5 {[%clk 0:02:45]} 16... Ne5 {[%clk 0:02:30]}
17. f4 {[%clk 0:02:43.5]} 17... Nh7 {[%clk 0:02:09.3]} 18. Nxh7 {[%clk
0:02:39.2]} 18... Rxh7 {[%clk 0:02:08.1]} 19. fxe5 {[%clk 0:02:35.8]} 19... Be7
{[%clk 0:02:04.6]} 20. Qf3 {[%clk 0:02:32.3]} 20... exd5 {[%clk 0:02:02.9]} 21.
cxd5 {[%clk 0:02:29.1]} 21... Qxd5 {[%clk 0:02:02.5]} 22. Qxd5+ {[%clk
0:02:29.2]} 22... Rxd5 {[%clk 0:02:02.2]} 23. Ne4 {[%clk 0:02:29.1]} 23... Rg7
{[%clk 0:01:55.2]} 24. Rad1 {[%clk 0:02:25.5]} 24... Rb5 {[%clk 0:01:49]} 25.
Bc1 {[%clk 0:02:19.6]} 25... h4 {[%clk 0:01:38.8]} 26. Rd7 {[%clk 0:02:16.3]}
26... Bc5 {[%clk 0:01:36.6]} 27. Nxc5+ {[%clk 0:02:14.4]} 27... Rxc5 {[%clk
0:01:36.9]} 28. e6 {[%clk 0:02:13.6]} 28... h3 {[%clk 0:01:29.9]} 29. g3 {[%clk
0:02:07.1]} 29... Rg8 {[%clk 0:00:53.9]} 30. exf7 {[%clk 0:02:04.8]} 30... Rf8
{[%clk 0:00:53.3]} 31. Re7 {[%clk 0:02:01]} 31... Rc2 {[%clk 0:00:51.2]} 32. e4
{[%clk 0:01:45.1]} 32... Rg2+ {[%clk 0:00:50.3]} 33. Kh1 {[%clk 0:01:45]} 33...
Kc6 {[%clk 0:00:47.5]} 34. Bh6 {[%clk 0:01:43.8]} 34... Rh8 {[%clk 0:00:26.5]}
35. f8=Q {[%clk 0:01:34.3]} 35... Rxf8 {[%clk 0:00:26]} 36. Bxf8 {[%clk
0:01:34]} 36... Kd6 {[%clk 0:00:25.4]} 37. Rh7+ {[%clk 0:01:31.2]} 37... Ke6
{[%clk 0:00:25.3]} 38. Rxh3 {[%clk 0:01:30.8]} 38... Ra2 {[%clk 0:00:22.3]} 39.
Rh5 {[%clk 0:01:27.1]} 39... Kd7 {[%clk 0:00:21.4]} 1-0

[Event "*** Titled Tuesday Blitz"]
[Site "Chess.com"]
[Date "2020.10.27"]
[Round "7"]
[White "kidagent"]
[Black "Chamal_Gedgafov"]
[Result "1-0"]
[WhiteElo "2297"]
[BlackElo "2149"]
[TimeControl "180+1"]
[EndTime "11:17:53 PDT"]
[Termination "kidagent won by resignation"]

1. e4 {[%clk 0:03:00.9]} 1... e6 {[%clk 0:02:58]} 2. d4 {[%clk 0:03:00.5]} 2...
d5 {[%clk 0:02:53.5]} 3. Nc3 {[%clk 0:03:00.7]} 3... Bb4 {[%clk 0:02:51.8]} 4.
e5 {[%clk 0:03:01]} 4... c5 {[%clk 0:02:51.3]} 5. a3 {[%clk 0:02:59]} 5... Bxc3+
{[%clk 0:02:51.3]} 6. bxc3 {[%clk 0:02:59.9]} 6... Ne7 {[%clk 0:02:49.8]} 7. Qg4
{[%clk 0:02:59.3]} 7... Qc7 {[%clk 0:02:49.6]} 8. Qxg7 {[%clk 0:02:55.7]} 8...
Rg8 {[%clk 0:02:49.3]} 9. Qxh7 {[%clk 0:02:55.9]} 9... cxd4 {[%clk 0:02:50.2]}
10. Ne2 {[%clk 0:02:53.8]} 10... Nbc6 {[%clk 0:02:50.6]} 11. h4 {[%clk 0:02:39]}
11... Qxe5 {[%clk 0:02:42.1]} 12. Bf4 {[%clk 0:02:37.1]} 12... Qf6 {[%clk
0:02:39.2]} 13. Bg5 {[%clk 0:02:27.2]} 13... Qe5 {[%clk 0:02:14]} 14. f4 {[%clk
0:02:20.6]} 14... Qc7 {[%clk 0:01:58.6]} 15. Rh3 {[%clk 0:02:09.4]} 15... Bd7
{[%clk 0:01:54.5]} 16. cxd4 {[%clk 0:02:05.9]} 16... O-O-O {[%clk 0:01:50.2]}
17. Rc3 {[%clk 0:02:02.5]} 17... Qa5 {[%clk 0:01:42.4]} 18. Bxe7 {[%clk
0:01:55.9]} 18... Rde8 {[%clk 0:01:39.6]} 19. Bb4 {[%clk 0:01:52.5]} 19... Qb6
{[%clk 0:01:36.5]} 20. O-O-O {[%clk 0:01:45]} 20... Kb8 {[%clk 0:01:35.8]} 21.
Qxf7 {[%clk 0:01:43.1]} 21... Bc8 {[%clk 0:01:23.6]} 22. Bd6+ {[%clk 0:01:40.1]}
22... Ka8 {[%clk 0:01:22]} 23. Rb3 {[%clk 0:01:33.2]} 23... Qd8 {[%clk
0:01:15.1]} 24. Be5 {[%clk 0:01:18.8]} 24... Qxh4 {[%clk 0:01:12.3]} 25. g3
{[%clk 0:01:02.1]} 25... Qh1 {[%clk 0:00:41.1]} 26. g4 {[%clk 0:00:51.9]} 26...
Rgf8 {[%clk 0:00:34.6]} 27. Qh5 {[%clk 0:00:50.8]} 27... Qg1 {[%clk 0:00:28.3]}
28. Nxg1 {[%clk 0:00:50]} 1-0

[Event "*** Titled Tuesday Blitz"]
[Site "Chess.com"]
[Date "2020.10.27"]
[Round "7"]
[White "TheCavemanChesss"]
[Black "Legendinunknown"]
[Result "0-1"]
[WhiteElo "2518"]
[BlackElo "2659"]
[TimeControl "180+1"]
[EndTime "11:17:55 PDT"]
[Termination "Legendinunknown won on time"]

1. d4 {[%clk 0:02:00.1]} 1... Nf6 {[%clk 0:02:55.6]} 2. c4 {[%clk 0:02:00]} 2...
e5 {[%clk 0:02:55.1]} 3. dxe5 {[%clk 0:02:00.1]} 3... Ng4 {[%clk 0:02:55]} 4.
Bf4 {[%clk 0:01:59.7]} 4... Nc6 {[%clk 0:02:54.5]} 5. Nf3 {[%clk 0:01:59.8]}
5... Bb4+ {[%clk 0:02:53.7]} 6. Nc3 {[%clk 0:01:59.4]} 6... Qe7 {[%clk 0:02:53]}
7. Qd5 {[%clk 0:01:59.5]} 7... Bxc3+ {[%clk 0:02:52.1]} 8. bxc3 {[%clk
0:01:59.4]} 8... f6 {[%clk 0:02:52.4]} 9. exf6 {[%clk 0:01:59.3]} 9... Nxf6
{[%clk 0:02:53.3]} 10. Qd3 {[%clk 0:01:59.3]} 10... d6 {[%clk 0:02:53.7]} 11. g3
{[%clk 0:01:58.7]} 11... O-O {[%clk 0:02:52.9]} 12. Bg2 {[%clk 0:01:58.9]} 12...
Bg4 {[%clk 0:02:51.7]} 13. O-O {[%clk 0:01:55.1]} 13... Rae8 {[%clk 0:02:51.2]}
14. Rae1 {[%clk 0:01:54.3]} 14... Kh8 {[%clk 0:02:36.5]} 15. Nd4 {[%clk
0:01:34.4]} 15... Ne5 {[%clk 0:02:34.5]} 16. Qe3 {[%clk 0:01:28.1]} 16... c6
{[%clk 0:02:24.2]} 17. h3 {[%clk 0:01:11.6]} 17... Bc8 {[%clk 0:02:17.9]} 18. c5
{[%clk 0:00:58.8]} 18... dxc5 {[%clk 0:02:15]} 19. Nb3 {[%clk 0:00:58.7]} 19...
Nd5 {[%clk 0:02:05.7]} 20. Qxe5 {[%clk 0:00:57]} 20... Qxe5 {[%clk 0:02:04.2]}
21. Bxe5 {[%clk 0:00:57.9]} 21... Rxe5 {[%clk 0:02:04.5]} 22. c4 {[%clk
0:00:32]} 22... Nb4 {[%clk 0:02:02.9]} 23. a3 {[%clk 0:00:21.2]} 23... Nc2
{[%clk 0:02:02.2]} 24. Rc1 {[%clk 0:00:21.5]} 24... Rxe2 {[%clk 0:01:56.2]} 25.
a4 {[%clk 0:00:16.9]} 25... b6 {[%clk 0:01:47.3]} 26. a5 {[%clk 0:00:09.7]}
26... Nd4 {[%clk 0:01:44.3]} 27. Nxd4 {[%clk 0:00:08.4]} 27... cxd4 {[%clk
0:01:45.2]} 28. axb6 {[%clk 0:00:09.1]} 28... axb6 {[%clk 0:01:45.8]} 29. c5
{[%clk 0:00:09.8]} 29... bxc5 {[%clk 0:01:42.2]} 30. Rxc5 {[%clk 0:00:10.7]}
30... d3 {[%clk 0:01:37.3]} 31. Rxc6 {[%clk 0:00:06.6]} 31... d2 {[%clk
0:01:34.1]} 32. Rd6 {[%clk 0:00:06.5]} 32... h6 {[%clk 0:01:23.5]} 0-1

[Event "*** Titled Tuesday Blitz"]
[Site "Chess.com"]
[Date "2020.10.27"]
[Round "7"]
[White "Caterpiller35"]
[Black "Meri-Arabidze"]
[Result "0-1"]
[WhiteElo "2465"]
[BlackElo "2669"]
[TimeControl "180+1"]
[EndTime "11:18:00 PDT"]
[Termination "Meri-Arabidze won by resignation"]

1. d4 {[%clk 0:03:00]} 1... d5 {[%clk 0:03:00]} 2. Bf4 {[%clk 0:02:59.6]} 2...
Nf6 {[%clk 0:02:59.7]} 3. e3 {[%clk 0:02:59.9]} 3... e6 {[%clk 0:02:59.8]} 4.
Nd2 {[%clk 0:02:59.6]} 4... Bd6 {[%clk 0:03:00.4]} 5. Bg3 {[%clk 0:03:00]} 5...
c5 {[%clk 0:03:00.8]} 6. c3 {[%clk 0:03:00]} 6... Nc6 {[%clk 0:03:01.4]} 7. Ngf3
{[%clk 0:02:58.7]} 7... O-O {[%clk 0:03:01.1]} 8. Bd3 {[%clk 0:02:58]} 8... b6
{[%clk 0:03:01.4]} 9. e4 {[%clk 0:02:57.2]} 9... Be7 {[%clk 0:03:00.7]} 10. e5
{[%clk 0:02:55.2]} 10... Nh5 {[%clk 0:03:00.7]} 11. a3 {[%clk 0:02:54.3]} 11...
a5 {[%clk 0:02:59]} 12. Qe2 {[%clk 0:02:54.3]} 12... h6 {[%clk 0:02:58.1]} 13.
Nf1 {[%clk 0:02:52.4]} 13... Bb7 {[%clk 0:02:56]} 14. Ne3 {[%clk 0:02:50.4]}
14... Qc8 {[%clk 0:02:55.9]} 15. Ng4 {[%clk 0:02:45.8]} 15... Ba6 {[%clk
0:02:49.4]} 16. O-O {[%clk 0:02:39.8]} 16... Bxd3 {[%clk 0:02:47.5]} 17. Qxd3
{[%clk 0:02:40.7]} 17... a4 {[%clk 0:02:37.6]} 18. Qe3 {[%clk 0:02:34.9]} 18...
Nxg3 {[%clk 0:02:16.2]} 19. fxg3 {[%clk 0:02:34.2]} 19... f5 {[%clk 0:02:10]}
20. exf6 {[%clk 0:02:29.4]} 20... Bxf6 {[%clk 0:02:10.1]} 21. Rae1 {[%clk
0:02:25.7]} 21... cxd4 {[%clk 0:02:02.1]} 22. cxd4 {[%clk 0:02:08.1]} 22... b5
{[%clk 0:01:46.5]} 23. Kh1 {[%clk 0:01:35.6]} 23... b4 {[%clk 0:01:41.3]} 24.
axb4 {[%clk 0:01:21.3]} 24... Nxb4 {[%clk 0:01:33.6]} 25. Qxe6+ {[%clk
0:01:15.8]} 25... Qxe6 {[%clk 0:01:25.2]} 26. Rxe6 {[%clk 0:01:16.7]} 26... Nd3
{[%clk 0:01:25.9]} 27. Rb6 {[%clk 0:00:38.9]} 27... Bxd4 {[%clk 0:01:23.7]} 28.
Rb5 {[%clk 0:00:38.3]} 28... Bxb2 {[%clk 0:01:22.7]} 29. Rxd5 {[%clk 0:00:38.1]}
29... Rfd8 {[%clk 0:01:03.7]} 0-1

[Event "*** Titled Tuesday Blitz"]
[Site "Chess.com"]
[Date "2020.10.27"]
[Round "7"]
[White "WhiteKnight2612"]
[Black "GMaka"]
[Result "1-0"]
[WhiteElo "2590"]
[BlackElo "2397"]
[TimeControl "180+1"]
[EndTime "11:18:03 PDT"]
[Termination "WhiteKnight2612 won by resignation"]

1. Nf3 {[%clk 0:02:45.2]} 1... Nf6 {[%clk 0:02:59.3]} 2. g3 {[%clk 0:02:45.6]}
2... b6 {[%clk 0:02:58.9]} 3. Bg2 {[%clk 0:02:46.2]} 3... Bb7 {[%clk 0:02:59.8]}
4. O-O {[%clk 0:02:46.6]} 4... e6 {[%clk 0:03:00.3]} 5. d4 {[%clk 0:02:47.5]}
5... c5 {[%clk 0:03:00.4]} 6. c4 {[%clk 0:02:48.4]} 6... cxd4 {[%clk 0:03:00.9]}
7. Qxd4 {[%clk 0:02:48.9]} 7... Be7 {[%clk 0:02:58.9]} 8. b3 {[%clk 0:02:48.9]}
8... Ne4 {[%clk 0:02:51.8]} 9. Ne5 {[%clk 0:02:09.6]} 9... Nd6 {[%clk
0:02:25.8]} 10. Bb2 {[%clk 0:01:50.7]} 10... Bxg2 {[%clk 0:02:11.1]} 11. Kxg2
{[%clk 0:01:51.6]} 11... Nf5 {[%clk 0:02:11.6]} 12. Qd2 {[%clk 0:01:48.7]} 12...
d6 {[%clk 0:02:05.1]} 13. e4 {[%clk 0:01:45.4]} 13... dxe5 {[%clk 0:01:51.4]}
14. Qxd8+ {[%clk 0:01:43.5]} 14... Bxd8 {[%clk 0:01:52.3]} 15. exf5 {[%clk
0:01:43.5]} 15... exf5 {[%clk 0:00:46.7]} 16. Bxe5 {[%clk 0:01:42]} 16... O-O
{[%clk 0:00:47.3]} 17. Nc3 {[%clk 0:01:34]} 17... Nc6 {[%clk 0:00:46.9]} 18. Bd6
{[%clk 0:01:34.3]} 18... Re8 {[%clk 0:00:44.3]} 19. Nd5 {[%clk 0:01:34.7]} 19...
Rc8 {[%clk 0:00:36.5]} 20. Rad1 {[%clk 0:01:33.7]} 20... f6 {[%clk 0:00:30.8]}
21. h4 {[%clk 0:01:28.4]} 21... Kf7 {[%clk 0:00:30.5]} 22. h5 {[%clk 0:01:27.1]}
22... g6 {[%clk 0:00:30.5]} 23. hxg6+ {[%clk 0:01:26.9]} 23... hxg6 {[%clk
0:00:30.9]} 24. Rh1 {[%clk 0:01:26.5]} 24... Rg8 {[%clk 0:00:29.8]} 25. Nf4
{[%clk 0:01:22]} 25... Be7 {[%clk 0:00:27]} 26. Bxe7 {[%clk 0:01:18.7]} 26...
Nxe7 {[%clk 0:00:27.9]} 27. Rd7 {[%clk 0:01:18.7]} 27... Rg7 {[%clk 0:00:21.4]}
28. Nd5 {[%clk 0:01:13.7]} 28... Re8 {[%clk 0:00:14.9]} 29. Re1 {[%clk
0:01:09.6]} 29... Kf8 {[%clk 0:00:14.3]} 30. Nxf6 {[%clk 0:01:10.2]} 30... Rc8
{[%clk 0:00:13.9]} 31. Rh1 {[%clk 0:01:08.3]} 31... a5 {[%clk 0:00:10.9]} 32.
Rh8+ {[%clk 0:01:07.6]} 32... Kf7 {[%clk 0:00:11.4]} 33. Rxc8 {[%clk 0:01:07.1]}
33... Kxf6 {[%clk 0:00:11.4]} 34. Rcc7 {[%clk 0:01:07.9]} 1-0

[Event "*** Titled Tuesday Blitz"]
[Site "Chess.com"]
[Date "2020.10.27"]
[Round "7"]
[White "SergeyKarjakin"]
[Black "GOGIEFF"]
[Result "0-1"]
[WhiteElo "3001"]
[BlackElo "2907"]
[TimeControl "180+1"]
[EndTime "11:18:04 PDT"]
[Termination "GOGIEFF won on time"]

1. d4 {[%clk 0:03:00.5]} 1... Nf6 {[%clk 0:02:59.5]} 2. Bg5 {[%clk 0:03:01.1]}
2... e6 {[%clk 0:02:54.9]} 3. Nd2 {[%clk 0:03:00.8]} 3... h6 {[%clk 0:02:54.9]}
4. Bh4 {[%clk 0:03:00.5]} 4... d6 {[%clk 0:02:47.4]} 5. e4 {[%clk 0:02:57.1]}
5... Nbd7 {[%clk 0:02:46.4]} 6. c3 {[%clk 0:02:51.7]} 6... b6 {[%clk 0:02:43.2]}
7. Bd3 {[%clk 0:02:49]} 7... Bb7 {[%clk 0:02:43]} 8. f4 {[%clk 0:02:32.2]} 8...
Be7 {[%clk 0:02:32.4]} 9. Ngf3 {[%clk 0:02:31.4]} 9... Nh5 {[%clk 0:02:25.4]}
10. Bxe7 {[%clk 0:02:30.2]} 10... Qxe7 {[%clk 0:02:26.3]} 11. g3 {[%clk
0:02:29.7]} 11... e5 {[%clk 0:02:19.6]} 12. fxe5 {[%clk 0:02:13.6]} 12... dxe5
{[%clk 0:02:19]} 13. d5 {[%clk 0:01:32.2]} 13... Nhf6 {[%clk 0:02:18.7]} 14. Qe2
{[%clk 0:01:26.8]} 14... O-O {[%clk 0:02:15]} 15. c4 {[%clk 0:01:21.5]} 15... c6
{[%clk 0:02:12.7]} 16. O-O {[%clk 0:01:21.2]} 16... Nc5 {[%clk 0:02:07.5]} 17.
Rac1 {[%clk 0:01:14.9]} 17... a5 {[%clk 0:01:59.8]} 18. Bb1 {[%clk 0:01:13.8]}
18... cxd5 {[%clk 0:01:49.2]} 19. exd5 {[%clk 0:01:08.6]} 19... e4 {[%clk
0:01:49.7]} 20. Nd4 {[%clk 0:01:03.9]} 20... Rfe8 {[%clk 0:01:46.9]} 21. Rf4
{[%clk 0:00:55.4]} 21... Rad8 {[%clk 0:01:32.2]} 22. Rcf1 {[%clk 0:00:54.1]}
22... Qe5 {[%clk 0:01:32.4]} 23. Qe3 {[%clk 0:00:46.8]} 23... Rxd5 {[%clk
0:01:26.4]} 24. cxd5 {[%clk 0:00:24.4]} 24... Nxd5 {[%clk 0:01:26]} 25. Nc4
{[%clk 0:00:06.2]} 25... Nxe3 {[%clk 0:01:17.6]} 26. Nxe5 {[%clk 0:00:06.6]}
26... Nxf1 {[%clk 0:01:13.6]} 27. Nxf7 {[%clk 0:00:07.2]} 27... Nd2 {[%clk
0:01:12.8]} 28. Nd6 {[%clk 0:00:03.7]} 28... Rd8 {[%clk 0:01:10.2]} 29. N4b5
{[%clk 0:00:02.7]} 29... Nxb1 {[%clk 0:01:08.6]} 30. Nxb7 {[%clk 0:00:02.9]}
30... Nxb7 {[%clk 0:01:08.1]} 0-1

[Event "*** Titled Tuesday Blitz"]
[Site "Chess.com"]
[Date "2020.10.27"]
[Round "7"]
[White "Azerichess"]
[Black "GMKrikor"]
[Result "1-0"]
[WhiteElo "2987"]
[BlackElo "2793"]
[TimeControl "180+1"]
[EndTime "11:18:04 PDT"]
[Termination "Azerichess won by resignation"]

1. e4 {[%clk 0:03:00.9]} 1... c5 {[%clk 0:02:59.7]} 2. Nc3 {[%clk 0:03:01.2]}
2... e6 {[%clk 0:02:59.6]} 3. Nf3 {[%clk 0:03:01.2]} 3... a6 {[%clk 0:02:59.3]}
4. g3 {[%clk 0:03:01.3]} 4... d5 {[%clk 0:02:56.4]} 5. exd5 {[%clk 0:03:00.6]}
5... exd5 {[%clk 0:02:57.3]} 6. d4 {[%clk 0:03:01.2]} 6... Nc6 {[%clk
0:02:55.4]} 7. Bg2 {[%clk 0:03:00.2]} 7... Nf6 {[%clk 0:02:54]} 8. O-O {[%clk
0:02:59]} 8... Bg4 {[%clk 0:02:53.6]} 9. Qe1+ {[%clk 0:02:56.2]} 9... Be7 {[%clk
0:02:47.6]} 10. Ne5 {[%clk 0:02:45.8]} 10... Be6 {[%clk 0:02:14.8]} 11. dxc5
{[%clk 0:02:44.3]} 11... Bxc5 {[%clk 0:02:05.8]} 12. Nd3 {[%clk 0:02:44.3]}
12... Bd6 {[%clk 0:01:53.1]} 13. Bg5 {[%clk 0:02:41.6]} 13... O-O {[%clk
0:01:30.9]} 14. Nxd5 {[%clk 0:02:33.3]} 14... Bxd5 {[%clk 0:01:28.6]} 15. Bxd5
{[%clk 0:02:33.3]} 15... Bxg3 {[%clk 0:01:08.4]} 16. Bxc6 {[%clk 0:02:07.3]}
16... Bxh2+ {[%clk 0:01:06]} 17. Kg2 {[%clk 0:01:53.4]} 17... bxc6 {[%clk
0:00:59.4]} 18. f4 {[%clk 0:01:45.3]} 18... Re8 {[%clk 0:00:49.9]} 19. Qd1
{[%clk 0:01:31.9]} 19... h6 {[%clk 0:00:23.3]} 20. Bxf6 {[%clk 0:01:22.6]} 20...
Qxf6 {[%clk 0:00:24.2]} 21. Qg4 {[%clk 0:01:15]} 21... Re3 {[%clk 0:00:06.6]}
22. Kxh2 {[%clk 0:01:13.3]} 22... h5 {[%clk 0:00:05.2]} 23. Qg5 {[%clk
0:01:04.2]} 23... Qe6 {[%clk 0:00:04.3]} 24. f5 {[%clk 0:01:03.8]} 24... Qe4
{[%clk 0:00:04.4]} 25. Rae1 {[%clk 0:00:57]} 25... Rxe1 {[%clk 0:00:01.6]} 26.
Rxe1 {[%clk 0:00:57.9]} 26... Qf3 {[%clk 0:00:02.2]} 27. Rg1 {[%clk 0:00:56.1]}
27... Qe3 {[%clk 0:00:01]} 1-0

[Event "*** Titled Tuesday Blitz"]
[Site "Chess.com"]
[Date "2020.10.27"]
[Round "7"]
[White "Nemsko"]
[Black "Michaelson_11"]
[Result "0-1"]
[WhiteElo "2335"]
[BlackElo "2147"]
[TimeControl "180+1"]
[EndTime "11:18:07 PDT"]
[Termination "Michaelson_11 won by resignation"]

1. e4 {[%clk 0:03:00.9]} 1... c5 {[%clk 0:02:58.9]} 2. Nf3 {[%clk 0:03:01.2]}
2... Nc6 {[%clk 0:02:58.8]} 3. d4 {[%clk 0:03:02.1]} 3... cxd4 {[%clk
0:02:59.7]} 4. Nxd4 {[%clk 0:03:03]} 4... g6 {[%clk 0:02:58.4]} 5. c4 {[%clk
0:03:01.4]} 5... Nf6 {[%clk 0:02:53.5]} 6. Nc3 {[%clk 0:03:01.2]} 6... d6 {[%clk
0:02:50.8]} 7. h3 {[%clk 0:02:58.5]} 7... Nxd4 {[%clk 0:02:47.5]} 8. Qxd4 {[%clk
0:02:58.2]} 8... Bg7 {[%clk 0:02:48.4]} 9. Qd1 {[%clk 0:02:58.6]} 9... O-O
{[%clk 0:02:47.8]} 10. Be3 {[%clk 0:02:59.2]} 10... a5 {[%clk 0:02:40.5]} 11.
Bd3 {[%clk 0:02:50.7]} 11... a4 {[%clk 0:02:38.5]} 12. a3 {[%clk 0:02:43.7]}
12... Qa5 {[%clk 0:02:36]} 13. O-O {[%clk 0:02:42.7]} 13... Bd7 {[%clk
0:02:27.7]} 14. Rc1 {[%clk 0:02:40.7]} 14... Bc6 {[%clk 0:02:26.7]} 15. Nd5
{[%clk 0:02:20.5]} 15... Bxd5 {[%clk 0:02:19.2]} 16. exd5 {[%clk 0:02:16.9]}
16... Nd7 {[%clk 0:02:19]} 17. Qc2 {[%clk 0:02:04.4]} 17... Ne5 {[%clk 0:02:08]}
18. Be2 {[%clk 0:02:03.4]} 18... Rfc8 {[%clk 0:02:03.2]} 19. f4 {[%clk
0:01:56.6]} 19... Nxc4 {[%clk 0:01:49.3]} 20. Bxc4 {[%clk 0:01:56.8]} 20... b5
{[%clk 0:01:48]} 21. Qe2 {[%clk 0:01:28.6]} 21... bxc4 {[%clk 0:01:42.3]} 22.
Rxc4 {[%clk 0:01:29.5]} 22... Qxd5 {[%clk 0:01:41.4]} 23. Rfc1 {[%clk
0:01:24.7]} 23... Rxc4 {[%clk 0:01:33.9]} 24. Qxc4 {[%clk 0:01:23.7]} 24... Qxc4
{[%clk 0:01:31.1]} 25. Rxc4 {[%clk 0:01:24.6]} 25... Bxb2 {[%clk 0:01:31.4]} 26.
Bc1 {[%clk 0:01:16.3]} 26... d5 {[%clk 0:01:23]} 27. Rc2 {[%clk 0:01:15.1]}
27... Bxc1 {[%clk 0:01:17.9]} 28. Rxc1 {[%clk 0:01:16]} 28... Rb8 {[%clk
0:01:18.7]} 29. Kf2 {[%clk 0:01:10.1]} 29... Rb3 {[%clk 0:01:17.8]} 30. Ra1
{[%clk 0:01:10.2]} 30... Kg7 {[%clk 0:01:12]} 31. Ra2 {[%clk 0:01:10.3]} 31...
Kf6 {[%clk 0:01:11.1]} 32. g3 {[%clk 0:01:05.9]} 32... Kf5 {[%clk 0:01:08.1]}
33. Re2 {[%clk 0:01:00.6]} 33... e6 {[%clk 0:00:54.8]} 34. Ra2 {[%clk
0:00:52.7]} 34... Ke4 {[%clk 0:00:47.2]} 35. Re2+ {[%clk 0:00:52.1]} 35... Kd4
{[%clk 0:00:43.4]} 36. Ra2 {[%clk 0:00:51.5]} 36... Kc3 {[%clk 0:00:42.5]} 37.
Kf3 {[%clk 0:00:48.7]} 37... Rb2 {[%clk 0:00:38]} 38. Ra1 {[%clk 0:00:48.3]}
38... Kb3 {[%clk 0:00:37]} 0-1

[Event "*** Titled Tuesday Blitz"]
[Site "Chess.com"]
[Date "2020.10.27"]
[Round "7"]
[White "WuinaterJr"]
[Black "GregShahade"]
[Result "1-0"]
[WhiteElo "2528"]
[BlackElo "2636"]
[TimeControl "180+1"]
[EndTime "11:18:08 PDT"]
[Termination "WuinaterJr won by resignation"]

1. d4 {[%clk 0:03:00.9]} 1... Nf6 {[%clk 0:02:59.7]} 2. c4 {[%clk 0:03:00.8]}
2... g6 {[%clk 0:02:59.9]} 3. Nf3 {[%clk 0:03:00.9]} 3... Bg7 {[%clk 0:02:59.8]}
4. g3 {[%clk 0:03:01.5]} 4... d5 {[%clk 0:02:59.1]} 5. cxd5 {[%clk 0:02:59.5]}
5... Nxd5 {[%clk 0:03:00]} 6. Bg2 {[%clk 0:02:59.9]} 6... Nb6 {[%clk 0:03:00.5]}
7. O-O {[%clk 0:02:59.8]} 7... Nc6 {[%clk 0:03:01.2]} 8. e3 {[%clk 0:02:59.8]}
8... O-O {[%clk 0:03:01.3]} 9. Nc3 {[%clk 0:03:00]} 9... Re8 {[%clk 0:03:01.6]}
10. a3 {[%clk 0:02:55.8]} 10... Rb8 {[%clk 0:03:01.1]} 11. b4 {[%clk 0:02:53.6]}
11... e5 {[%clk 0:02:59.3]} 12. d5 {[%clk 0:02:52.6]} 12... e4 {[%clk 0:02:56]}
13. Nd4 {[%clk 0:02:38.6]} 13... Nxd4 {[%clk 0:02:54.4]} 14. exd4 {[%clk
0:02:38.6]} 14... Nxd5 {[%clk 0:02:48.6]} 15. Nxe4 {[%clk 0:02:38.5]} 15... Bf5
{[%clk 0:02:48.7]} 16. Nc5 {[%clk 0:02:31.4]} 16... Nc3 {[%clk 0:02:44.1]} 17.
Qb3 {[%clk 0:02:24.6]} 17... Ne2+ {[%clk 0:02:32.7]} 18. Kh1 {[%clk 0:02:24.7]}
18... Nxd4 {[%clk 0:02:33.3]} 19. Qa2 {[%clk 0:02:13.4]} 19... Re2 {[%clk
0:02:23.3]} 20. Qd5 {[%clk 0:01:53.9]} 20... Qxd5 {[%clk 0:02:08.9]} 21. Bxd5
{[%clk 0:01:54.8]} 21... c6 {[%clk 0:01:48.3]} 22. Bg2 {[%clk 0:01:53.4]} 22...
Nb5 {[%clk 0:01:20.6]} 23. Bf4 {[%clk 0:01:49.4]} 23... Rbe8 {[%clk 0:01:10.4]}
24. Rad1 {[%clk 0:01:48]} 24... b6 {[%clk 0:01:10.7]} 25. Bxc6 {[%clk
0:01:45.8]} 25... Nc3 {[%clk 0:01:01.8]} 26. Bxe8 {[%clk 0:01:34.9]} 26... Nxd1
{[%clk 0:00:55.8]} 27. Rxd1 {[%clk 0:01:14.4]} 27... bxc5 {[%clk 0:00:56]} 28.
Bb5 {[%clk 0:01:02.5]} 28... Be4+ {[%clk 0:00:24.4]} 29. Kg1 {[%clk 0:00:52.3]}
29... Ra2 {[%clk 0:00:20.1]} 30. Rd8+ {[%clk 0:00:46.9]} 30... Bf8 {[%clk
0:00:20.2]} 31. Bh6 {[%clk 0:00:47.2]} 31... Ra1+ {[%clk 0:00:19.9]} 32. Bf1
{[%clk 0:00:47.3]} 1-0